[Event "*** Titled Tuesday Blitz"]
[Site "Chess.com"]
[Date "2018.10.02"]
[Round "6"]
[White "Cryptinz"]
[Black "murmah2003"]
[Result "0-1"]
[WhiteElo "2374"]
[BlackElo "2568"]
[TimeControl "180+2"]
[EndTime "14:21:26 PDT"]
[Termination "murmah2003 won by resignation"]

1. d4 {[%clk 0:03:01.9]} 1... d5 {[%clk 0:02:59.9]} 2. c4 {[%clk 0:03:02.2]}
2... e6 {[%clk 0:03:00.9]} 3. Nf3 {[%clk 0:03:03.3]} 3... Nf6 {[%clk 0:03:01.2]}
4. Nbd2 {[%clk 0:03:03.8]} 4... Be7 {[%clk 0:03:01.8]} 5. g3 {[%clk 0:03:04.2]}
5... O-O {[%clk 0:03:03.4]} 6. Bg2 {[%clk 0:03:04.9]} 6... c5 {[%clk 0:03:04.9]}
7. cxd5 {[%clk 0:03:02.3]} 7... Na6 {[%clk 0:03:06.3]} 8. dxe6 {[%clk
0:02:52.9]} 8... Bxe6 {[%clk 0:03:08.2]} 9. dxc5 {[%clk 0:02:47.3]} 9... Bxc5
{[%clk 0:03:08.9]} 10. O-O {[%clk 0:02:45.9]} 10... Qb6 {[%clk 0:03:08.6]} 11.
Ng5 {[%clk 0:01:45.2]} 11... Ng4 {[%clk 0:02:46.5]} 12. e3 {[%clk 0:01:38.9]}
12... Nxe3 {[%clk 0:02:43.6]} 13. Qh5 {[%clk 0:01:32.5]} 13... h6 {[%clk
0:02:27.4]} 14. Nxe6 {[%clk 0:01:33.1]} 14... Nxf1 {[%clk 0:02:22.4]} 15. Nxc5
{[%clk 0:01:20.2]} 15... Nxd2 {[%clk 0:02:13.8]} 16. Nxa6 {[%clk 0:01:19]} 16...
Rad8 {[%clk 0:02:03.4]} 17. Nc5 {[%clk 0:01:09]} 17... Rfe8 {[%clk 0:01:51]} 18.
Bxd2 {[%clk 0:00:58]} 18... Rxd2 {[%clk 0:01:52.9]} 19. Rf1 {[%clk 0:00:17.9]}
19... Qb5 {[%clk 0:01:40.3]} 20. Bd5 {[%clk 0:00:09.2]} 20... Re7 {[%clk
0:01:30.9]} 21. b4 {[%clk 0:00:02.1]} 21... Qxb4 {[%clk 0:01:30.7]} 22. Ne4
{[%clk 0:00:02.7]} 22... Rxe4 {[%clk 0:01:30.4]} 23. Bxe4 {[%clk 0:00:03.3]}
23... Qxe4 {[%clk 0:01:32.3]} 24. Qa5 {[%clk 0:00:04.3]} 24... Qd4 {[%clk
0:01:29.9]} 25. Qb5 {[%clk 0:00:04.8]} 25... Qd7 {[%clk 0:01:18.7]} 26. Qa5
{[%clk 0:00:05.8]} 26... b6 {[%clk 0:01:19.1]} 27. Qc3 {[%clk 0:00:07.7]} 27...
g6 {[%clk 0:01:18.3]} 28. Qa3 {[%clk 0:00:05.2]} 28... h5 {[%clk 0:01:18.3]} 29.
Qa6 {[%clk 0:00:05.1]} 29... Rd1 {[%clk 0:01:19]} 30. Rxd1 {[%clk 0:00:04.6]}
30... Qxd1+ {[%clk 0:01:20.9]} 31. Kg2 {[%clk 0:00:06.3]} 31... Qd5+ {[%clk
0:01:22.8]} 32. Kg1 {[%clk 0:00:07.7]} 32... Qd7 {[%clk 0:01:22.4]} 33. h4
{[%clk 0:00:08.5]} 33... Kg7 {[%clk 0:01:22.6]} 34. Qc4 {[%clk 0:00:08.8]} 34...
Qd1+ {[%clk 0:01:19.4]} 35. Kg2 {[%clk 0:00:09.4]} 35... Qa1 {[%clk 0:01:20.7]}
36. a4 {[%clk 0:00:09.6]} 36... Qe5 {[%clk 0:01:20.7]} 37. Qb4 {[%clk
0:00:08.7]} 37... Qc5 {[%clk 0:01:18.3]} 38. Qb2+ {[%clk 0:00:08.3]} 38... Kg8
{[%clk 0:01:19.3]} 39. Qf6 {[%clk 0:00:08.8]} 39... Qc4 {[%clk 0:01:18.3]} 40.
Qd8+ {[%clk 0:00:06.9]} 40... Kg7 {[%clk 0:01:18.9]} 41. Qd7 {[%clk 0:00:08]}
41... a6 {[%clk 0:01:16.8]} 42. Kh2 {[%clk 0:00:08.1]} 42... b5 {[%clk
0:01:17.4]} 43. axb5 {[%clk 0:00:10]} 43... axb5 {[%clk 0:01:19.1]} 44. Qd2
{[%clk 0:00:10.6]} 44... b4 {[%clk 0:01:19.3]} 45. Qb2+ {[%clk 0:00:11.7]} 45...
Qc3 {[%clk 0:01:20.7]} 46. Qb1 {[%clk 0:00:09.1]} 46... b3 {[%clk 0:01:21.5]}
47. Kg2 {[%clk 0:00:09]} 47... Qc2 {[%clk 0:01:21.9]} 48. Qe1 {[%clk 0:00:09.7]}
48... b2 {[%clk 0:01:21.5]} 49. Qe5+ {[%clk 0:00:10.6]} 49... Kh7 {[%clk
0:01:22.8]} 50. Qf4 {[%clk 0:00:08.4]} 50... Qb3 {[%clk 0:01:22.6]} 0-1

[Event "*** Titled Tuesday Blitz"]
[Site "Chess.com"]
[Date "2018.10.02"]
[Round "6"]
[White "Vamostodorecto"]
[Black "ddtru"]
[Result "1-0"]
[WhiteElo "2416"]
[BlackElo "2239"]
[TimeControl "180+2"]
[EndTime "14:21:34 PDT"]
[Termination "Vamostodorecto won on time"]

1. d4 {[%clk 0:03:00.4]} 1... d5 {[%clk 0:02:59.9]} 2. c4 {[%clk 0:02:57.2]}
2... c6 {[%clk 0:03:01]} 3. Nf3 {[%clk 0:02:57]} 3... Nf6 {[%clk 0:03:02]} 4.
Nc3 {[%clk 0:02:57.7]} 4... e6 {[%clk 0:03:03.1]} 5. e3 {[%clk 0:02:58.1]} 5...
Nbd7 {[%clk 0:03:04.1]} 6. Bd3 {[%clk 0:02:59.1]} 6... Bd6 {[%clk 0:03:03.5]} 7.
O-O {[%clk 0:02:59.4]} 7... dxc4 {[%clk 0:03:03.5]} 8. Bxc4 {[%clk 0:02:59.6]}
8... b5 {[%clk 0:03:02]} 9. Bd3 {[%clk 0:02:59.2]} 9... Bb7 {[%clk 0:03:02.9]}
10. e4 {[%clk 0:02:58.9]} 10... e5 {[%clk 0:03:03.6]} 11. dxe5 {[%clk
0:02:55.4]} 11... Nxe5 {[%clk 0:03:04.2]} 12. Nxe5 {[%clk 0:02:56.4]} 12... Bxe5
{[%clk 0:03:05.2]} 13. f4 {[%clk 0:02:57.4]} 13... Bd4+ {[%clk 0:03:02.8]} 14.
Kh1 {[%clk 0:02:57.3]} 14... b4 {[%clk 0:02:51]} 15. Ne2 {[%clk 0:02:43.7]}
15... Bb6 {[%clk 0:02:46.2]} 16. Ng3 {[%clk 0:02:35.1]} 16... O-O {[%clk
0:02:17.1]} 17. e5 {[%clk 0:02:33.6]} 17... Nd5 {[%clk 0:02:15.6]} 18. Qc2
{[%clk 0:02:15.6]} 18... h6 {[%clk 0:02:03]} 19. f5 {[%clk 0:02:16.3]} 19... f6
{[%clk 0:01:49.6]} 20. e6 {[%clk 0:02:09.7]} 20... Qd6 {[%clk 0:01:46.3]} 21.
Bc4 {[%clk 0:01:48]} 21... Ne7 {[%clk 0:01:12.5]} 22. Bf4 {[%clk 0:01:45.9]}
22... Qc5 {[%clk 0:01:07.8]} 23. Rad1 {[%clk 0:01:44.9]} 23... Rad8 {[%clk
0:01:07.9]} 24. Rd7 {[%clk 0:01:34.2]} 24... Rxd7 {[%clk 0:00:59.6]} 25. exd7+
{[%clk 0:01:34.6]} 25... Kh7 {[%clk 0:00:50.2]} 26. Rd1 {[%clk 0:01:30.3]} 26...
Nd5 {[%clk 0:00:49.3]} 27. Bc1 {[%clk 0:01:10.5]} 27... Rd8 {[%clk 0:00:49.4]}
28. Ne4 {[%clk 0:01:09]} 28... Qe7 {[%clk 0:00:41.2]} 29. Qe2 {[%clk 0:00:52.6]}
29... Qxd7 {[%clk 0:00:28.4]} 30. Qh5 {[%clk 0:00:35.1]} 30... Qe8 {[%clk
0:00:21.5]} 31. Qg4 {[%clk 0:00:34.8]} 31... Qf7 {[%clk 0:00:18.3]} 32. Re1
{[%clk 0:00:29.8]} 32... Re8 {[%clk 0:00:17.7]} 33. Bd2 {[%clk 0:00:26.2]} 33...
Bc7 {[%clk 0:00:17.2]} 34. Bxb4 {[%clk 0:00:25.6]} 34... a5 {[%clk 0:00:09.9]}
35. Bd2 {[%clk 0:00:24.2]} 35... Re5 {[%clk 0:00:08.1]} 36. Bc3 {[%clk
0:00:23.2]} 36... Re8 {[%clk 0:00:08.2]} 37. Rf1 {[%clk 0:00:23.7]} 37... Be5
{[%clk 0:00:08]} 38. Bxa5 {[%clk 0:00:23.5]} 38... Bxb2 {[%clk 0:00:08.2]} 39.
a4 {[%clk 0:00:24.4]} 39... Ra8 {[%clk 0:00:05.6]} 40. Bc3 {[%clk 0:00:20.8]}
40... Bxc3 {[%clk 0:00:02.3]} 41. Nxc3 {[%clk 0:00:22.7]} 1-0

[Event "*** Titled Tuesday Blitz"]
[Site "Chess.com"]
[Date "2018.10.02"]
[Round "6"]
[White "Turkey-Champion"]
[Black "cool4chess"]
[Result "0-1"]
[WhiteElo "2303"]
[BlackElo "2192"]
[TimeControl "180+2"]
[EndTime "14:21:57 PDT"]
[Termination "cool4chess won by checkmate"]

1. e4 {[%clk 0:03:01.9]} 1... c5 {[%clk 0:03:00.6]} 2. Nf3 {[%clk 0:03:02.7]}
2... a6 {[%clk 0:03:01.9]} 3. d4 {[%clk 0:03:04.6]} 3... cxd4 {[%clk 0:03:02.9]}
4. Nxd4 {[%clk 0:03:05.7]} 4... Nf6 {[%clk 0:03:03.6]} 5. Nc3 {[%clk 0:03:05.3]}
5... e5 {[%clk 0:03:04.6]} 6. Nf5 {[%clk 0:03:05.6]} 6... d5 {[%clk 0:03:05.6]}
7. Bg5 {[%clk 0:03:07.1]} 7... d4 {[%clk 0:03:02.1]} 8. Nd5 {[%clk 0:03:03.6]}
8... Bxf5 {[%clk 0:02:56.6]} 9. Qf3 {[%clk 0:02:35.7]} 9... Be6 {[%clk
0:02:28.4]} 10. Bxf6 {[%clk 0:02:29.2]} 10... gxf6 {[%clk 0:02:15.5]} 11. Nxf6+
{[%clk 0:02:30.4]} 11... Ke7 {[%clk 0:02:16.6]} 12. Bd3 {[%clk 0:02:27.7]} 12...
Qa5+ {[%clk 0:02:15.5]} 13. Ke2 {[%clk 0:02:24.7]} 13... Nd7 {[%clk 0:02:05.6]}
14. Nh5 {[%clk 0:02:20.5]} 14... Rg8 {[%clk 0:02:05.7]} 15. h3 {[%clk
0:02:20.1]} 15... Bh6 {[%clk 0:02:06.5]} 16. g4 {[%clk 0:02:19.3]} 16... Qd2+
{[%clk 0:02:02.2]} 17. Kf1 {[%clk 0:02:20.3]} 17... Bg5 {[%clk 0:01:56.6]} 18.
Rd1 {[%clk 0:02:19.2]} 18... Qb4 {[%clk 0:01:47]} 19. h4 {[%clk 0:02:18.7]}
19... Bf4 {[%clk 0:01:40.9]} 20. g5 {[%clk 0:02:12.8]} 20... Qd6 {[%clk
0:01:30.3]} 21. Ke2 {[%clk 0:01:58.6]} 21... h6 {[%clk 0:01:30.8]} 22. Rdg1
{[%clk 0:01:55.8]} 22... hxg5 {[%clk 0:01:22.8]} 23. hxg5 {[%clk 0:01:57.7]}
23... Rxg5 {[%clk 0:01:17.2]} 24. Nxf4 {[%clk 0:01:43]} 24... Rxg1 {[%clk
0:01:17.1]} 25. Nxe6 {[%clk 0:01:42.3]} 25... Rxh1 {[%clk 0:01:06.9]} 26. Ng7
{[%clk 0:01:43.2]} 26... Kf8 {[%clk 0:00:44]} 27. Nf5 {[%clk 0:01:41.8]} 27...
Qg6 {[%clk 0:00:34.3]} 28. Qxh1 {[%clk 0:01:41.2]} 28... Nf6 {[%clk 0:00:33.4]}
29. Qh8+ {[%clk 0:01:40.6]} 29... Ng8 {[%clk 0:00:33.4]} 30. Qxe5 {[%clk
0:01:41.7]} 30... Re8 {[%clk 0:00:31.2]} 31. Qc5+ {[%clk 0:01:32]} 31... Ne7
{[%clk 0:00:31.1]} 32. Ng3 {[%clk 0:01:21.5]} 32... Qg4+ {[%clk 0:00:24.2]} 33.
Ke1 {[%clk 0:01:22.4]} 33... Kg8 {[%clk 0:00:19.6]} 34. Qxd4 {[%clk 0:01:19.8]}
34... Ng6 {[%clk 0:00:20.1]} 35. Qf6 {[%clk 0:00:54.5]} 35... Nh4 {[%clk
0:00:11.9]} 36. Be2 {[%clk 0:00:43.8]} 36... Ng2+ {[%clk 0:00:08.5]} 37. Kf1
{[%clk 0:00:39]} 37... Qh3 {[%clk 0:00:09.6]} 38. Kg1 {[%clk 0:00:38.1]} 38...
Nh4 {[%clk 0:00:09.9]} 39. Qg5+ {[%clk 0:00:38.9]} 39... Kf8 {[%clk 0:00:11.3]}
40. Qc5+ {[%clk 0:00:39.6]} 40... Re7 {[%clk 0:00:11.7]} 41. Qc8+ {[%clk
0:00:34.2]} 41... Qxc8 {[%clk 0:00:12.4]} 42. Nf5 {[%clk 0:00:35]} 42... Nxf5
{[%clk 0:00:12.9]} 43. Bg4 {[%clk 0:00:36.2]} 43... Qxc2 {[%clk 0:00:12.7]} 44.
Bxf5 {[%clk 0:00:37.6]} 44... Qxb2 {[%clk 0:00:12.6]} 45. a4 {[%clk 0:00:39.3]}
45... Re5 {[%clk 0:00:12.6]} 46. a5 {[%clk 0:00:41.2]} 46... Rxa5 {[%clk
0:00:12.7]} 47. Kh1 {[%clk 0:00:41.6]} 47... Rxf5 {[%clk 0:00:13.6]} 48. exf5
{[%clk 0:00:40.7]} 48... Qxf2 {[%clk 0:00:14.5]} 49. f6 {[%clk 0:00:42.4]} 49...
Qxf6 {[%clk 0:00:16.3]} 50. Kg2 {[%clk 0:00:42.8]} 50... Qg6+ {[%clk 0:00:16.5]}
51. Kh1 {[%clk 0:00:42.7]} 51... Ke7 {[%clk 0:00:18.2]} 52. Kh2 {[%clk
0:00:43.8]} 52... Kf6 {[%clk 0:00:20.1]} 53. Kh1 {[%clk 0:00:44.7]} 53... Kf5
{[%clk 0:00:22]} 54. Kh2 {[%clk 0:00:46.6]} 54... Kf4 {[%clk 0:00:23.9]} 55. Kh3
{[%clk 0:00:47.8]} 55... Qg3# {[%clk 0:00:24.4]} 0-1

[Event "*** Titled Tuesday Blitz"]
[Site "Chess.com"]
[Date "2018.10.02"]
[Round "6"]
[White "petrpalachev"]
[Black "ahmadzada13"]
[Result "1/2-1/2"]
[WhiteElo "2772"]
[BlackElo "2651"]
[TimeControl "180+2"]
[EndTime "14:21:58 PDT"]
[Termination "Game drawn by agreement"]

1. d4 {[%clk 0:03:01.9]} 1... Nf6 {[%clk 0:03:00.9]} 2. c4 {[%clk 0:03:03]} 2...
e6 {[%clk 0:03:02.5]} 3. Nf3 {[%clk 0:03:03.6]} 3... c5 {[%clk 0:03:04.1]} 4. d5
{[%clk 0:03:04.5]} 4... exd5 {[%clk 0:03:06]} 5. cxd5 {[%clk 0:03:06.3]} 5... d6
{[%clk 0:03:07.4]} 6. Nc3 {[%clk 0:03:07.9]} 6... g6 {[%clk 0:03:05.2]} 7. Bf4
{[%clk 0:03:08.5]} 7... Bg7 {[%clk 0:03:06.5]} 8. e3 {[%clk 0:03:02.6]} 8... O-O
{[%clk 0:02:55.4]} 9. Be2 {[%clk 0:03:02.2]} 9... Na6 {[%clk 0:02:56.8]} 10. h3
{[%clk 0:02:53.7]} 10... Nc7 {[%clk 0:02:55]} 11. a4 {[%clk 0:02:54.5]} 11... a6
{[%clk 0:02:49.7]} 12. O-O {[%clk 0:02:53.8]} 12... Rb8 {[%clk 0:02:39.4]} 13.
a5 {[%clk 0:02:51.4]} 13... b5 {[%clk 0:02:38.1]} 14. axb6 {[%clk 0:02:51.9]}
14... Rxb6 {[%clk 0:02:39.2]} 15. Ra2 {[%clk 0:02:49.5]} 15... Ncxd5 {[%clk
0:02:38.1]} 16. Bg5 {[%clk 0:02:30.5]} 16... Nxc3 {[%clk 0:02:35.7]} 17. bxc3
{[%clk 0:02:32.4]} 17... h6 {[%clk 0:02:34.2]} 18. Bxf6 {[%clk 0:02:33.2]} 18...
Qxf6 {[%clk 0:02:36.1]} 19. c4 {[%clk 0:02:34.9]} 19... Bb7 {[%clk 0:02:32.7]}
20. Nd2 {[%clk 0:02:32.6]} 20... d5 {[%clk 0:02:30.4]} 21. cxd5 {[%clk
0:02:30.4]} 21... Bxd5 {[%clk 0:02:32.2]} 22. Rc2 {[%clk 0:02:31.8]} 22... Rd8
{[%clk 0:02:26.8]} 23. Qc1 {[%clk 0:02:29.9]} 23... Bf8 {[%clk 0:02:25]} 24. Bf3
{[%clk 0:02:29]} 24... Bxf3 {[%clk 0:02:15.4]} 25. Nxf3 {[%clk 0:02:30.9]} 25...
h5 {[%clk 0:02:12.7]} 26. Qa1 {[%clk 0:02:27.2]} 26... Qxa1 {[%clk 0:02:10.6]}
27. Rxa1 {[%clk 0:02:29.1]} 27... Rdb8 {[%clk 0:02:08]} 28. g4 {[%clk
0:02:24.7]} 28... hxg4 {[%clk 0:02:04.6]} 29. hxg4 {[%clk 0:02:26.6]} 29... Rb1+
{[%clk 0:02:05.4]} 30. Rxb1 {[%clk 0:02:19.4]} 30... Rxb1+ {[%clk 0:02:07.3]}
31. Kg2 {[%clk 0:02:21.1]} 31... a5 {[%clk 0:02:04.1]} 32. Ra2 {[%clk
0:02:19.8]} 32... Rb5 {[%clk 0:02:00]} 33. Ne5 {[%clk 0:02:21.1]} 33... Bg7
{[%clk 0:01:52]} 34. Nc4 {[%clk 0:02:20.2]} 34... Rb4 {[%clk 0:01:46.8]} 35.
Nxa5 {[%clk 0:02:19.2]} 35... Rxg4+ {[%clk 0:01:47.5]} 36. Kf3 {[%clk
0:02:19.5]} 36... Rb4 {[%clk 0:01:44.6]} 37. Rc2 {[%clk 0:02:19.5]} 37... Rb5
{[%clk 0:01:42.4]} 38. Nc4 {[%clk 0:02:18.8]} 38... Rb4 {[%clk 0:01:36.9]} 39.
Ke4 {[%clk 0:02:19.6]} 39... Bf8 {[%clk 0:01:34.2]} 40. Kd5 {[%clk 0:02:20.8]}
40... Rb1 {[%clk 0:01:30.8]} 41. f4 {[%clk 0:02:15.9]} 41... Kg7 {[%clk
0:01:29.1]} 42. Ne5 {[%clk 0:02:09.7]} 42... Rd1+ {[%clk 0:01:25.9]} 43. Ke4
{[%clk 0:02:10.5]} 43... f6 {[%clk 0:01:15.3]} 44. Nc4 {[%clk 0:02:09.9]} 44...
Kh6 {[%clk 0:01:10.7]} 45. Rh2+ {[%clk 0:02:08.5]} 45... Kg7 {[%clk 0:01:11.2]}
46. Rc2 {[%clk 0:02:08.4]} 46... Be7 {[%clk 0:01:07.1]} 47. Ra2 {[%clk
0:02:06.1]} 47... Kf7 {[%clk 0:01:06]} 48. Ra7 {[%clk 0:02:00.5]} 48... Ke6
{[%clk 0:01:04.1]} 49. Ra6+ {[%clk 0:02:00.5]} 49... Bd6 {[%clk 0:01:02.3]} 50.
Kf3 {[%clk 0:01:34]} 50... Rd3 {[%clk 0:00:59.3]} 51. Ke2 {[%clk 0:01:34.5]}
51... Rd5 {[%clk 0:00:55.5]} 52. Kf3 {[%clk 0:01:35.5]} 52... g5 {[%clk
0:00:53.1]} 53. fxg5 {[%clk 0:01:36.5]} 53... fxg5 {[%clk 0:00:49.4]} 54. Rb6
{[%clk 0:01:37.1]} 54... Kd7 {[%clk 0:00:45]} 55. Nxd6 {[%clk 0:01:13]} 55...
Rxd6 {[%clk 0:00:43.2]} 56. Rb7+ {[%clk 0:01:14.4]} 56... Kc6 {[%clk 0:00:40.7]}
57. Rg7 {[%clk 0:01:15.8]} 57... Rd5 {[%clk 0:00:38.9]} 58. e4 {[%clk 0:01:15]}
58... Re5 {[%clk 0:00:36.6]} 59. Ke3 {[%clk 0:01:16.3]} 59... Kb5 {[%clk
0:00:34.4]} 60. Kd3 {[%clk 0:01:15.9]} 60... c4+ {[%clk 0:00:29]} 61. Kc3 {[%clk
0:01:11.4]} 1/2-1/2

[Event "*** Titled Tuesday Blitz"]
[Site "Chess.com"]
[Date "2018.10.02"]
[Round "6"]
[White "Bryakin_Mikhail"]
[Black "Thjop"]
[Result "1/2-1/2"]
[WhiteElo "2671"]
[BlackElo "2627"]
[TimeControl "180+2"]
[EndTime "14:22:13 PDT"]
[Termination "Game drawn by agreement"]

1. d4 {[%clk 0:03:01.9]} 1... Nf6 {[%clk 0:02:49]} 2. c4 {[%clk 0:03:03]} 2...
g6 {[%clk 0:02:49.6]} 3. Nc3 {[%clk 0:03:03.8]} 3... Bg7 {[%clk 0:02:50.8]} 4.
Nf3 {[%clk 0:03:04.6]} 4... d6 {[%clk 0:02:52.1]} 5. Bf4 {[%clk 0:03:06]} 5...
O-O {[%clk 0:02:53.2]} 6. e3 {[%clk 0:03:07.6]} 6... c5 {[%clk 0:02:51.1]} 7.
Be2 {[%clk 0:03:08.2]} 7... Bf5 {[%clk 0:02:48.4]} 8. O-O {[%clk 0:03:08.1]}
8... Nc6 {[%clk 0:02:44.8]} 9. h3 {[%clk 0:03:08.5]} 9... Ne4 {[%clk 0:02:37.7]}
10. Nxe4 {[%clk 0:02:44.2]} 10... Bxe4 {[%clk 0:02:37]} 11. d5 {[%clk
0:02:45.7]} 11... Na5 {[%clk 0:02:22.3]} 12. Nd2 {[%clk 0:02:45.1]} 12... Bf5
{[%clk 0:02:22.7]} 13. e4 {[%clk 0:02:36.4]} 13... Bd7 {[%clk 0:02:23.1]} 14.
Qc2 {[%clk 0:02:37.5]} 14... a6 {[%clk 0:02:22.8]} 15. Rab1 {[%clk 0:02:36]}
15... b5 {[%clk 0:02:18]} 16. b3 {[%clk 0:02:35.8]} 16... Rb8 {[%clk 0:02:10.2]}
17. Rfe1 {[%clk 0:02:32.3]} 17... Qc7 {[%clk 0:02:10.7]} 18. Bd3 {[%clk
0:02:31.4]} 18... bxc4 {[%clk 0:02:06.4]} 19. Nxc4 {[%clk 0:02:09.1]} 19... Nxc4
{[%clk 0:02:06.4]} 20. Bxc4 {[%clk 0:02:11]} 20... Bb5 {[%clk 0:02:03.5]} 21. g4
{[%clk 0:01:59.6]} 21... Bxc4 {[%clk 0:01:58.4]} 22. bxc4 {[%clk 0:02:01.5]}
22... Rb4 {[%clk 0:01:45.1]} 23. Bd2 {[%clk 0:02:01.2]} 23... Rxb1 {[%clk
0:01:41.1]} 24. Rxb1 {[%clk 0:02:03.1]} 24... Rb8 {[%clk 0:01:41.9]} 25. Rb3
{[%clk 0:01:59.6]} 25... Bd4 {[%clk 0:01:29.2]} 26. Kg2 {[%clk 0:01:54.9]} 26...
f6 {[%clk 0:01:21]} 27. Qb1 {[%clk 0:01:52.6]} 27... Rxb3 {[%clk 0:01:21.5]} 28.
Qxb3 {[%clk 0:01:54.5]} 28... Kf7 {[%clk 0:01:21.1]} 29. a4 {[%clk 0:01:54.4]}
29... Qd7 {[%clk 0:01:09.7]} 30. a5 {[%clk 0:01:53.4]} 30... Qc8 {[%clk
0:01:03.3]} 31. Qb6 {[%clk 0:01:52.3]} 31... h5 {[%clk 0:01:01.6]} 32. g5 {[%clk
0:01:38.4]} 32... f5 {[%clk 0:00:58]} 33. Qb1 {[%clk 0:01:39.4]} 33... fxe4
{[%clk 0:00:42.5]} 34. Qxe4 {[%clk 0:01:41.3]} 34... Qf5 {[%clk 0:00:38.8]} 35.
Qf4 {[%clk 0:01:39.5]} 35... Be5 {[%clk 0:00:35.9]} 36. Qf3 {[%clk 0:01:39.4]}
36... e6 {[%clk 0:00:33.5]} 37. dxe6+ {[%clk 0:01:28.5]} 37... Kxe6 {[%clk
0:00:34.5]} 38. Qd5+ {[%clk 0:01:29.7]} 38... Ke7 {[%clk 0:00:34.2]} 39. Qb7+
{[%clk 0:01:30.9]} 39... Ke6 {[%clk 0:00:35.1]} 40. Qc8+ {[%clk 0:01:26.6]}
40... Kf7 {[%clk 0:00:32.8]} 41. Qxf5+ {[%clk 0:00:59.1]} 41... gxf5 {[%clk
0:00:34.7]} 42. h4 {[%clk 0:00:52.2]} 42... Kg6 {[%clk 0:00:33]} 43. Kf3 {[%clk
0:00:51.8]} 43... Kf7 {[%clk 0:00:34]} 44. Bf4 {[%clk 0:00:51.2]} 44... Kg6
{[%clk 0:00:34.9]} 45. Ke3 {[%clk 0:00:47.4]} 45... Kf7 {[%clk 0:00:35.6]} 46.
Kf3 {[%clk 0:00:48.9]} 46... Kg6 {[%clk 0:00:36.6]} 47. Be3 {[%clk 0:00:50.4]}
47... Kf7 {[%clk 0:00:36.8]} 48. Ke2 {[%clk 0:00:51.9]} 48... Kg6 {[%clk
0:00:36.4]} 49. Kd3 {[%clk 0:00:53.2]} 49... Kf7 {[%clk 0:00:37.2]} 50. Bd2
{[%clk 0:00:52.4]} 50... Kg6 {[%clk 0:00:38]} 51. Bc3 {[%clk 0:00:50.7]} 51...
Kf7 {[%clk 0:00:38]} 52. Bd2 {[%clk 0:00:37.4]} 52... Kg6 {[%clk 0:00:38.2]} 53.
Be3 {[%clk 0:00:38.2]} 53... Kf7 {[%clk 0:00:39]} 54. Ke2 {[%clk 0:00:38.9]}
54... Kg6 {[%clk 0:00:39.7]} 55. Kf3 {[%clk 0:00:40.5]} 55... Kf7 {[%clk
0:00:40.7]} 56. Bd2 {[%clk 0:00:32.9]} 56... Kg6 {[%clk 0:00:38.6]} 57. Bf4
{[%clk 0:00:34.3]} 57... Kf7 {[%clk 0:00:38.8]} 58. Bd2 {[%clk 0:00:26.1]}
1/2-1/2

[Event "*** Titled Tuesday Blitz"]
[Site "Chess.com"]
[Date "2018.10.02"]
[Round "6"]
[White "Blitzstream"]
[Black "jerom555888"]
[Result "0-1"]
[WhiteElo "2626"]
[BlackElo "2713"]
[TimeControl "180+2"]
[EndTime "14:22:16 PDT"]
[Termination "jerom555888 won by resignation"]

1. d4 {[%clk 0:03:01.9]} 1... f5 {[%clk 0:03:00.4]} 2. e4 {[%clk 0:03:01.9]}
2... fxe4 {[%clk 0:03:01.3]} 3. Nc3 {[%clk 0:03:02.8]} 3... Nf6 {[%clk
0:03:01.3]} 4. Bg5 {[%clk 0:03:02.2]} 4... Nc6 {[%clk 0:02:55.7]} 5. d5 {[%clk
0:03:03.4]} 5... Ne5 {[%clk 0:02:54.5]} 6. Qd4 {[%clk 0:03:04.5]} 6... Nf7
{[%clk 0:02:49.5]} 7. Bxf6 {[%clk 0:02:59.4]} 7... exf6 {[%clk 0:02:47.5]} 8.
Nxe4 {[%clk 0:03:00.5]} 8... Be7 {[%clk 0:02:40]} 9. O-O-O {[%clk 0:03:00.6]}
9... O-O {[%clk 0:02:40]} 10. g4 {[%clk 0:02:46.2]} 10... d6 {[%clk 0:02:36.8]}
11. Ng3 {[%clk 0:02:41]} 11... c5 {[%clk 0:02:29.1]} 12. dxc6 {[%clk 0:02:35.4]}
12... bxc6 {[%clk 0:02:29.7]} 13. Bd3 {[%clk 0:02:36.5]} 13... d5 {[%clk
0:02:27]} 14. Nf3 {[%clk 0:01:59.5]} 14... Rb8 {[%clk 0:02:26.9]} 15. Nf5 {[%clk
0:01:50.5]} 15... Bxf5 {[%clk 0:02:17.4]} 16. gxf5 {[%clk 0:01:51.3]} 16... Rb4
{[%clk 0:02:18.3]} 17. Qxa7 {[%clk 0:01:41.4]} 17... Bd6 {[%clk 0:02:02.6]} 18.
Nd4 {[%clk 0:01:32.4]} 18... Bb8 {[%clk 0:02:03.5]} 19. Qc5 {[%clk 0:01:32.2]}
19... Rxd4 {[%clk 0:01:49.5]} 20. Qxd4 {[%clk 0:01:32]} 20... Qa5 {[%clk
0:01:50.6]} 21. a3 {[%clk 0:01:26.5]} 21... Be5 {[%clk 0:01:50.8]} 22. Qb4
{[%clk 0:01:25.9]} 22... Qa7 {[%clk 0:01:51.5]} 23. c3 {[%clk 0:01:17.5]} 23...
Rb8 {[%clk 0:01:36.7]} 24. Qg4 {[%clk 0:01:18.2]} 24... Qxf2 {[%clk 0:00:53.6]}
25. Qe2 {[%clk 0:01:11.9]} 25... Qf4+ {[%clk 0:00:52.2]} 26. Rd2 {[%clk
0:00:54.9]} 26... Qa4 {[%clk 0:00:45.2]} 27. Rc2 {[%clk 0:00:51.6]} 27... Nd6
{[%clk 0:00:37.7]} 28. Rg1 {[%clk 0:00:48.3]} 28... Kh8 {[%clk 0:00:22.8]} 29.
Qg4 {[%clk 0:00:44.8]} 29... Qxg4 {[%clk 0:00:18.6]} 30. Rxg4 {[%clk 0:00:46.7]}
30... c5 {[%clk 0:00:20.4]} 31. Bf1 {[%clk 0:00:40.1]} 31... Nxf5 {[%clk
0:00:20.2]} 32. Re2 {[%clk 0:00:36.1]} 32... d4 {[%clk 0:00:20.8]} 33. cxd4
{[%clk 0:00:33.5]} 33... cxd4 {[%clk 0:00:22.3]} 34. b4 {[%clk 0:00:24.6]} 34...
Ne3 {[%clk 0:00:23]} 35. Rxe3 {[%clk 0:00:22]} 35... dxe3 {[%clk 0:00:24.4]} 36.
Re4 {[%clk 0:00:21.2]} 36... Bxh2 {[%clk 0:00:25.3]} 37. Kb2 {[%clk 0:00:21.4]}
37... Bg1 {[%clk 0:00:26.4]} 38. a4 {[%clk 0:00:20.1]} 38... f5 {[%clk
0:00:27.8]} 39. Rc4 {[%clk 0:00:20.8]} 39... Re8 {[%clk 0:00:26.9]} 40. Kb3
{[%clk 0:00:20.6]} 40... g5 {[%clk 0:00:26.9]} 41. a5 {[%clk 0:00:21.4]} 41...
e2 {[%clk 0:00:27.1]} 42. Bxe2 {[%clk 0:00:21.4]} 42... Rxe2 {[%clk 0:00:29]}
43. b5 {[%clk 0:00:23]} 43... f4 {[%clk 0:00:30.4]} 44. b6 {[%clk 0:00:23.9]}
44... Re1 {[%clk 0:00:29.1]} 45. Ka4 {[%clk 0:00:21.1]} 45... Rb1 {[%clk
0:00:29.7]} 46. Rc7 {[%clk 0:00:06.5]} 46... f3 {[%clk 0:00:27]} 47. Rf7 {[%clk
0:00:06.9]} 47... g4 {[%clk 0:00:23.2]} 48. b7 {[%clk 0:00:06.5]} 48... Ba7
{[%clk 0:00:24.1]} 49. a6 {[%clk 0:00:06]} 49... f2 {[%clk 0:00:25.4]} 50. Ka5
{[%clk 0:00:03]} 50... f1=Q {[%clk 0:00:25.7]} 0-1